bitfinex-derivatives/quotes_SOLF0:USTF0_20250331
["timestamp","ask_amount","ask_price","bid_price","bid_amount"]
[1743431446165,7.9242,126.22,126.2,34.9801756]
[1743431446372,0.05551025,126.22,126.2,0.0601756]
[1743431446572,7.9247,126.21,126.2,0.0601756]
[1743431447574,0.05551025,126.22,126.14,39.2555]
[1743431447876,4.3046,126.24,126.17,22.81670736]
[1743431448081,4.3046,126.24,126.18,96.9]
[1743431448271,34.9,126.27,126.18,96.9]
[1743431448576,34.9,126.27,126.18,34.9]
[1743431448776,0.05282204,126.24,126.21,0.05444292]
[1743431449176,7.9241,126.22,126.21,0.05444292]
[1743431450377,34.9,126.23,126.14,39.2555]
[1743431450576,26.84610736,126.22,126.13,4.0851]
[1743431450882,22.81670736,126.2,126.12,34.9]
[1743431451075,34.9,126.19,126.12,34.9]
[1743431451480,4.2817,126.25,126.16,7.9273]
[1743431451779,4.0294,126.24,126.17,34.9]
[1743431451981,7.9247,126.21,126.17,34.9]
[1743431452375,4.0294,126.24,126.17,34.9]
[1743431452680,7.97963766,126.22,126.19,0.05318241]
[1743431452975,0.05553766,126.22,126.19,0.05318241]
[1743431453780,0.05553766,126.22,126.19,7.97878241]
[1743431454082,0.05553766,126.22,126.19,0.05318241]
[1743431454273,0.05553766,126.22,126.15,4.0759]
[1743431454580,0.05553766,126.22,126.14,4.323]
[1743431454780,3.9716,126.22,126.14,4.323]
[1743431455080,34.9,126.23,126.15,84.81670736]
[1743431455280,34.9,126.23,126.17,22.81670736]
[1743431455475,0.05481275,126.2,126.18,0.06034908]
[1743431455983,0.05481275,126.2,126.18,7.98654908]
[1743431456579,0.05481275,126.2,126.19,7.9259]
[1743431456782,0.05481275,126.2,126.18,0.06034908]
[1743431457185,0.05481275,126.2,126.18,7.98664908]
[1743431458285,0.05481275,126.2,126.18,0.06034908]
[1743431458485,0.05481275,126.2,126.19,62.0]
[1743431458678,0.05481275,126.2,126.18,0.06034908]
[1743431459283,7.98041275,126.2,126.18,0.06034908]
[1743431459484,0.05481275,126.2,126.18,0.06034908]
[1743431459882,7.9259,126.19,126.18,0.06034908]
[1743431460087,0.05481275,126.2,126.18,0.06034908]
[1743431462679,7.9259,126.19,126.18,0.06034908]
[1743431462886,0.05481275,126.2,126.18,0.06034908]
[1743431463582,7.9259,126.19,126.18,0.06034908]
[1743431464293,7.9283,126.16,126.13,34.88]
[1743431464486,0.05481275,126.2,126.13,34.88]
[1743431464686,34.88,126.21,126.14,62.0]
[1743431465287,34.88,126.21,126.14,69.9287]
[1743431465488,7.9269,126.18,126.16,0.05370174]
[1743431465884,0.05791355,126.19,126.16,0.05370174]
[1743431466079,7.9272,126.17,126.16,0.05370174]
[1743431466984,0.05791355,126.19,126.16,0.05370174]
[1743431467484,7.98421355,126.19,126.16,0.05370174]
[1743431468184,0.05791355,126.19,126.16,0.05370174]
[1743431469190,7.9266,126.18,126.17,62.0]
[1743431469689,7.98411355,126.19,126.17,62.0]
[1743431469891,7.98411355,126.19,126.16,0.05370174]
[1743431470389,0.05791355,126.19,126.16,0.05370174]
[1743431471086,7.9272,126.17,126.16,0.05370174]
[1743431474592,7.9272,126.17,126.16,1.74e-06]
[1743431475096,42.7872,126.17,126.16,1.74e-06]
[1743431475290,7.9272,126.17,126.16,1.74e-06]
[1743431479400,0.05791355,126.19,126.16,1.74e-06]
[1743431480390,0.05791355,126.19,126.16,7.92750174]
[1743431480887,0.05791355,126.19,126.17,62.0]
[1743431481099,0.05791355,126.19,126.17,96.86]
[1743431481290,0.05791355,126.19,126.17,101.0972]
[1743431481596,0.05791355,126.19,126.18,7.9266]
[1743431481797,7.925,126.21,126.18,7.9266]
[1743431482393,52.16408413,126.25,126.17,39.0972]
[1743431482597,52.16408413,126.25,126.17,34.86]
[1743431482796,7.9263,126.19,126.17,34.86]
[1743431483296,7.98497458,126.19,126.17,34.9106645]
[1743431483692,0.05867458,126.19,126.17,34.9106645]
[1743431483893,48.03468413,126.25,126.17,34.9106645]
[1743431484090,7.9238,126.23,126.19,7.9257]
[1743431484392,4.2558,126.25,126.17,34.86]
[1743431484695,7.9241,126.22,126.18,7.9262]
[1743431484996,0.05539446,126.21,126.19,0.05310619]
[1743431485194,7.98049446,126.21,126.2,62.0]
[1743431485392,0.05539446,126.21,126.2,62.0]
[1743431485796,7.98009446,126.21,126.2,62.0]
[1743431486393,7.9253,126.2,126.19,6.19e-06]
[1743431487698,7.98039446,126.21,126.19,6.19e-06]
[1743431487894,0.05539446,126.21,126.19,6.19e-06]
[1743431488295,7.98039446,126.21,126.19,6.19e-06]
[1743431488694,0.05539446,126.21,126.19,6.19e-06]
[1743431489399,0.05539446,126.21,126.2,62.0]
[1743431489598,7.98049446,126.21,126.2,62.0]
[1743431489998,0.05539446,126.21,126.19,6.19e-06]
[1743431490197,7.9253,126.2,126.19,6.19e-06]
[1743431499100,10.94472103,126.25,126.19,34.82000619]
[1743431499304,15.32302103,126.25,126.19,34.82000619]
[1743431499509,7.9238,126.23,126.19,34.82000619]
[1743431500306,4.3783,126.25,126.19,34.82000619]
[1743431500307,7.98060526,126.22,126.19,34.82000619]
[1743431500509,0.05630526,126.22,126.19,6.19e-06]
[1743431500810,7.98050526,126.22,126.19,6.19e-06]
[1743431501205,0.05630526,126.22,126.19,6.19e-06]
[1743431503109,0.05630526,126.22,126.19,34.80000619]
[1743431503310,0.05630526,126.22,126.21,7.9247]
[1743431503513,10.94472103,126.27,126.2,31.35430736]
[1743431503708,10.94472103,126.27,126.21,4.0162]
[1743431504318,10.94472103,126.27,126.22,22.81670736]
[1743431504516,10.94472103,126.27,126.24,7.9223]
[1743431504711,0.05913665,126.26,126.23,34.85205403]
[1743431505015,10.94472103,126.27,126.24,22.81670736]
[1743431505219,120.39193136,126.28,126.24,22.81670736]
[1743431505412,43.82570821,126.31,126.24,22.81670736]
[1743431505608,43.82570821,126.31,126.26,7.9212]
[1743431505811,7.9193,126.3,126.27,34.8]
[1743431506310,0.05474812,126.3,126.27,42.77332682]
[1743431507013,0.05474812,126.3,126.28,62.0]
[1743431509415,0.05474812,126.3,126.27,34.85242682]
[1743431509616,0.05474812,126.3,126.27,0.05242682]
[1743431509920,7.9203,126.28,126.27,0.05242682]
[1743431510317,7.9216,126.26,126.22,34.78]
[1743431510721,8.5462,126.29,126.22,34.78]
[1743431511523,0.0596791,126.27,126.24,0.05667526]
[1743431512324,7.9810791,126.27,126.24,0.05667526]
[1743431512524,0.0596791,126.27,126.24,0.05667526]
[1743431512919,7.9222,126.25,126.24,0.05667526]
[1743431515024,7.9222,126.25,126.24,7.526e-05]
[1743431516725,7.9217,126.26,126.24,7.526e-05]
[1743431517129,0.0596791,126.27,126.24,7.526e-05]
[1743431517324,7.9215,126.26,126.24,7.526e-05]
[1743431517530,0.0596791,126.27,126.24,7.526e-05]
[1743431517933,7.9222,126.25,126.24,7.526e-05]
[1743431518329,0.0596791,126.27,126.24,7.526e-05]
[1743431518538,7.9222,126.25,126.24,7.526e-05]
[1743431519626,315.83670736,126.25,126.12,380.81670736]
[1743431519828,22.81670736,126.22,126.12,34.76]
[1743431520032,12.1356,126.21,126.12,34.76]
[1743431520231,34.76,126.2,126.12,34.76]
[1743431520428,34.76,126.2,126.14,7.9287]
[1743431520733,0.05236299,126.18,126.16,0.0534278]
[1743431523930,7.97906299,126.18,126.16,0.0534278]
[1743431524236,22.81670736,126.17,126.01,15.8739]
[1743431524429,22.81670736,126.17,126.07,47.3614]
[1743431524625,57.57670736,126.19,126.08,22.81670736]
[1743431524827,22.81670736,126.17,126.07,47.3614]
[1743431525033,7.9307,126.12,126.07,12.6014]
[1743431525536,0.05420706,126.11,126.08,0.05716956]
[1743431526134,0.05420706,126.11,126.09,7.9317]
[1743431526929,0.05420706,126.11,126.08,22.87387692]
[1743431526930,0.05420706,126.11,126.1,7.9316]
[1743431527126,0.05420706,126.11,126.1,69.9316]
[1743431527732,0.05420706,126.11,126.1,62.0]
[1743431528838,0.05420706,126.11,126.1,69.9316]
[1743431529629,4.1318,126.18,126.1,127.49670736]
[1743431529834,7.9267,126.18,126.12,22.81670736]
[1743431530133,4.2988,126.2,126.16,7.9278]
[1743431530433,4.2988,126.2,126.14,34.76]
[1743431530643,4.2988,126.2,126.1,119.57670736]
[1743431530937,0.05408575,126.18,126.16,0.04994462]
[1743431531441,7.98118575,126.18,126.16,0.04994462]
[1743431531631,0.05408575,126.18,126.16,0.04994462]
[1743431532236,7.9272,126.17,126.16,0.04994462]
[1743431532431,0.05408575,126.18,126.16,0.04994462]
[1743431534546,4.3821,126.24,126.16,22.86665198]
[1743431534837,4.3821,126.24,126.17,12.1611]
[1743431534838,7.9252,126.21,126.17,12.1611]
[1743431535038,4.3821,126.24,126.17,12.1611]
[1743431535237,7.9252,126.21,126.17,12.1611]
[1743431535440,7.9252,126.21,126.18,7.9265]
[1743431535636,7.9252,126.21,126.18,42.6865]
[1743431535832,0.05512965,126.21,126.18,57.63213188]
[1743431536038,4.3287,126.27,126.2,22.81670736]
[1743431536635,7.9222,126.25,126.2,22.81670736]
[1743431537142,7.9217,126.26,126.2,22.81670736]
[1743431537338,322.1966631,126.31,126.22,22.81670736]
[1743431537543,32.8341631,126.31,126.24,22.81670736]
[1743431537934,7.9193,126.3,126.26,30.73820736]
[1743431538144,32.8341631,126.31,126.28,22.81670736]
[1743431538443,7.917,126.34,126.3,30.73530736]
[1743431538639,120.39193136,126.37,126.31,34.74]
[1743431538839,120.39193136,126.37,126.32,22.81670736]
[1743431539345,120.39193136,126.37,126.34,22.81670736]
[1743431539545,120.39193136,126.37,126.35,34.74]
[1743431539750,7.9153,126.36,126.35,34.74]
[1743431540447,120.44582914,126.37,126.34,0.05097441]
[1743431541053,7.9159,126.35,126.34,0.05097441]
[1743431541949,155.16582914,126.37,126.28,22.81670736]
[1743431542150,155.11193136,126.37,126.28,57.53670736]
[1743431542351,4.3549,126.36,126.29,62.0]
[1743431542854,26.80100736,126.35,126.28,34.72]
[1743431543056,0.05394938,126.34,126.31,0.06094095]
[1743431543655,0.05394938,126.34,126.25,38.7529]
[1743431543853,34.72,126.33,126.25,38.7529]
[1743431544156,22.81670736,126.31,126.23,34.72]
[1743431544369,4.3058,126.3,126.23,34.72]
[1743431544755,0.05335064,126.28,126.25,0.05668248]
[1743431545056,0.05335064,126.28,126.25,7.97868248]
[1743431545754,0.05335064,126.28,126.26,62.0]
[1743431546553,0.05335064,126.28,126.25,0.05668248]
[1743431546751,7.9213,126.27,126.25,0.05668248]
[1743431546957,0.05335064,126.28,126.25,0.05668248]
[1743431547257,8.16245064,126.28,126.25,0.05668248]
[1743431549960,8.16245064,126.28,126.19,38.7329]
[1743431550163,45.13185146,126.28,126.19,38.7329]
[1743431550363,45.07850082,126.28,126.19,46.6587]
[1743431550663,45.07850082,126.28,126.19,38.7329]
[1743431550861,8.1091,126.28,126.19,75.70230082]
[1743431551062,0.05582545,126.25,126.22,0.05090667]
[1743431551258,0.05582545,126.25,126.22,7.97470667]
[1743431551465,0.05582545,126.25,126.22,0.05090667]
[1743431552971,7.97842545,126.25,126.22,0.05090667]
[1743431553167,0.05582545,126.25,126.22,0.05090667]
[1743431553571,7.9234,126.23,126.22,0.05090667]
[1743431555075,0.05582545,126.25,126.22,0.05090667]
[1743431556275,0.05582545,126.25,126.23,96.7]
[1743431556476,0.05582545,126.25,126.24,7.9228]
[1743431557480,285.06,126.3,126.24,7.9228]
[1743431557682,7.9201,126.29,126.24,7.9228]
[1743431557981,7.9201,126.29,126.25,7.922]
[1743431558174,7.9201,126.29,126.23,34.7]
[1743431558385,4.2239,126.31,126.23,71.66940082]
[1743431558573,0.06057461,126.27,126.25,0.06100257]
[1743431558880,7.9188,126.31,126.25,37.03040339]
[1743431559081,0.05462471,126.27,126.26,7.9211]
[1743431559473,0.06009993,126.28,126.25,37.03040339]
[1743431560081,0.06009993,126.28,126.27,7.9209]
[1743431560380,0.06009993,126.28,126.25,37.03040339]
[1743431560578,0.06009993,126.28,126.26,7.921]
[1743431560782,0.06009993,126.28,126.27,62.0]
[1743431562682,0.06009993,126.28,126.27,69.9209]
[1743431562980,0.06009993,126.28,126.27,62.0]
[1743431564579,0.06009993,126.28,126.25,7.98290257]
[1743431564779,0.06009993,126.28,126.25,0.06100257]
[1743431565678,0.06009993,126.28,126.25,22.80507034]
[1743431566078,0.06009993,126.28,126.26,7.9212]
[1743431566281,0.06009993,126.28,126.27,34.68]
[1743431567575,0.06009993,126.28,126.27,96.68]
[1743431567782,4.3422,126.32,126.27,96.68]
[1743431567977,12.2603,126.32,126.28,7.9201]
[1743431568182,4.2313,126.35,126.27,119.42406777]
[1743431568686,7.9178,126.32,126.28,7.92]
[1743431568885,7.97834388,126.32,126.3,0.05747266]
[1743431569082,0.06054388,126.32,126.3,7.97597266]
[1743431569288,0.06054388,126.32,126.3,0.05747266]
[1743431569689,0.06054388,126.32,126.3,7.97617266]
[1743431570588,0.06054388,126.32,126.31,7.9184]
[1743431570783,0.06054388,126.32,126.3,0.05747266]
[1743431570988,0.06054388,126.32,126.31,34.66]
[1743431572591,0.06054388,126.32,126.3,0.05747266]
[1743431573194,7.97864388,126.32,126.3,0.05747266]
[1743431573897,0.06054388,126.32,126.3,0.05747266]
[1743431574991,4.349,126.36,126.31,22.74406777]
[1743431575390,3.9833,126.37,126.31,22.74406777]
[1743431575596,11.8985,126.37,126.33,7.9168]
[1743431575798,8.3925,126.39,126.33,42.5768]
[1743431576192,7.9756878,126.37,126.35,0.05980285]
[1743431576394,0.0607878,126.37,126.35,0.05980285]
[1743431577390,0.0607878,126.37,126.35,7.97520285]
[1743431578100,0.0607878,126.37,126.35,0.05980285]
[1743431578500,7.9756878,126.37,126.35,0.05980285]
[1743431578695,0.0607878,126.37,126.35,0.05980285]
[1743431579101,7.9153,126.36,126.35,0.05980285]
[1743431579492,7.9172,126.33,126.32,34.64]
[1743431579695,7.9172,126.33,126.29,34.64]
[1743431580395,27.12636777,126.38,126.29,34.64]
[1743431580593,0.05624062,126.32,126.3,0.05876871]
[1743431580798,38.8391,126.39,126.33,7.9169]
[1743431580999,7.915,126.37,126.33,7.9169]
[1743431581199,4.1991,126.39,126.33,34.64]
[1743431581398,7.9146,126.38,126.34,7.9162]
[1743431581602,4.1991,126.39,126.34,7.9162]
[1743431582001,7.97513897,126.38,126.35,0.06080511]
[1743431582201,0.06053897,126.38,126.35,0.06080511]
[1743431582398,7.97493897,126.38,126.35,0.06080511]
[1743431582706,0.06053897,126.38,126.35,22.80487288]
[1743431583203,3.9935,126.43,126.37,22.74406777]
[1743431583501,3.9935,126.43,126.38,34.62]
[1743431583696,10.92493861,126.46,126.39,22.74406777]
[1743431583898,10.92493861,126.46,126.41,22.74406777]
[1743431584099,10.92493861,126.46,126.43,7.9103]
[1743431584320,0.05576915,126.45,126.43,22.74406777]
[1743431584598,68.49851971,126.48,126.47,7.9084]
[1743431584800,218.89442067,126.49,126.47,22.74406777]
[1743431585000,218.89442067,126.49,126.48,34.62]
[1743431585901,218.89442067,126.49,126.48,96.62]
[1743431586895,218.89442067,126.49,126.47,0.05997741]
[1743431587099,218.89442067,126.49,126.47,34.67997741]
[1743431587305,7.9078,126.48,126.47,34.67997741]
[1743431587505,7.9078,126.48,126.47,0.05997741]
[1743431588805,7.9074,126.49,126.47,0.05997741]
[1743431589197,0.06058362,126.5,126.47,0.05997741]
[1743431589399,0.06058362,126.5,126.48,34.6]
[1743431590001,7.9071,126.49,126.48,34.6]
[1743431590805,0.06058362,126.5,126.48,34.6]
[1743431591500,0.06058362,126.5,126.47,34.63997741]
[1743431591810,0.06058362,126.5,126.47,57.38404518]
[1743431593112,0.06058362,126.5,126.47,34.63997741]
[1743431593504,7.9078,126.48,126.47,34.63997741]
[1743431593704,0.06058362,126.5,126.47,34.63997741]
[1743431594608,7.9075,126.49,126.47,34.63997741]
[1743431595011,0.06058362,126.5,126.47,34.63997741]
[1743431596212,7.9078,126.48,126.47,34.63997741]
[1743431597213,7.9078,126.48,126.47,0.05997741]
[1743431597607,7.9074,126.49,126.47,0.05997741]
[1743431597807,0.06058362,126.5,126.47,0.05997741]
[1743431598619,0.06058362,126.5,126.49,22.74406777]
[1743431598915,8.5654,126.58,126.49,22.74406777]
[1743431599121,8.5654,126.58,126.5,34.58]
[1743431600014,7.904,126.54,126.53,0.05752429]
[1743431601317,7.9059,126.51,126.5,34.58]
[1743431601513,22.74406777,126.57,126.5,34.58]
[1743431601921,34.56,126.56,126.5,34.58]
[1743431602221,7.9069,126.5,126.48,34.56]
[1743431602915,0.0551809,126.5,126.48,34.61605637]
[1743431605114,0.0551809,126.5,126.48,0.05605637]
[1743431605314,7.9071,126.49,126.48,0.05605637]
[1743431606522,7.9093,126.46,126.44,319.14]
[1743431606714,7.9093,126.46,126.42,7.9114]
[1743431606913,7.9093,126.46,126.43,34.56]
[1743431607225,46.8505,126.52,126.44,7.91]
[1743431607421,46.8505,126.52,126.43,57.30406777]
[1743431607622,0.04997645,126.49,126.47,0.0546191]
[1743431608126,0.04997645,126.49,126.47,62.0546191]
[1743431609024,0.04997645,126.49,126.47,96.6146191]
[1743431609221,0.04997645,126.49,126.47,104.5227191]
[1743431609425,0.04997645,126.49,126.47,96.6146191]
[1743431609725,0.04997645,126.49,126.47,104.5229191]
[1743431609914,0.04997645,126.49,126.47,96.6146191]
[1743431610320,7.9078,126.48,126.47,96.6146191]
[1743431610520,0.04997645,126.49,126.47,34.6146191]
[1743431611424,0.04997645,126.49,126.48,7.9078]
[1743431612023,4.303,126.56,126.5,7.9062]
[1743431612219,4.303,126.56,126.51,34.56]
[1743431612423,8.0017,126.58,126.52,34.56]
[1743431612627,7.9031,126.56,126.52,42.4648]
[1743431613228,289.103,126.6,126.52,34.56]
[1743431613432,0.0572148,126.55,126.53,62.05621523]
[1743431613730,7.9037,126.55,126.53,62.05621523]
[1743431613935,7.96039451,126.55,126.53,62.05621523]
[1743431614232,0.05669451,126.55,126.53,69.96071523]
[1743431615236,0.05669451,126.55,126.54,7.904]
[1743431615430,0.05669451,126.55,126.53,22.800283]
[1743431615734,0.05669451,126.55,126.53,0.05621523]
[1743431616135,0.05669451,126.55,126.54,7.904]
[1743431616431,4.303,126.6,126.53,22.800283]
[1743431616631,12.2036,126.6,126.53,22.800283]
[1743431616826,12.2036,126.6,126.56,7.9025]
[1743431617038,12.2036,126.6,126.57,34.54]
[1743431617236,7.9006,126.6,126.57,34.54]
[1743431617436,7.95975924,126.6,126.57,34.59511397]
[1743431618329,7.9009,126.59,126.58,62.0]
[1743431618736,7.9015,126.58,126.57,0.05511397]
[1743431619238,0.05915924,126.6,126.57,0.05511397]
[1743431619737,7.9015,126.58,126.57,0.05511397]
[1743431619939,0.05915924,126.6,126.54,34.54]
[1743431620239,34.54,126.61,126.54,34.54]
[1743431620441,7.9034,126.55,126.54,34.54]
[1743431620741,34.54,126.61,126.54,34.54]
[1743431621041,7.9031,126.56,126.54,34.54]
[1743431621245,0.05387869,126.59,126.54,34.54]
[1743431621434,0.05982217,126.56,126.54,34.59343746]
[1743431621639,22.74406777,126.6,126.54,0.05343746]
[1743431621842,0.05898404,126.56,126.54,0.05343746]
[1743431622639,7.9034,126.55,126.54,0.05343746]
[1743431622839,0.05898404,126.56,126.51,62.0]
[1743431623036,7.9055,126.52,126.5,34.52]
[1743431623435,38.7038,126.57,126.5,34.52]
[1743431623643,7.9052,126.53,126.5,34.52]
[1743431623845,38.7038,126.57,126.5,34.52]
[1743431624039,0.05107497,126.53,126.5,34.57625064]
[1743431624242,0.05107497,126.53,126.5,0.05625064]
[1743431625647,7.9056,126.52,126.5,0.05625064]
[1743431626043,0.05107497,126.53,126.5,0.05625064]
[1743431626345,0.05107497,126.53,126.51,22.74406777]
[1743431626642,0.05107497,126.53,126.52,34.52]
[1743431627045,4.3379,126.61,126.52,34.52]
[1743431627343,4.3379,126.61,126.52,38.7118]
[1743431627547,7.9016,126.58,126.54,7.9037]
[1743431627939,4.3379,126.61,126.53,22.74406777]
[1743431628138,7.9012,126.59,126.53,22.74406777]
[1743431628346,0.05448732,126.58,126.56,0.05578652]
[1743431628548,0.05448732,126.58,126.56,34.57578652]
[1743431628749,0.05448732,126.58,126.56,42.47828652]
[1743431629747,0.05448732,126.58,126.57,62.0]
[1743431629949,8.3444,126.64,126.57,84.74406777]
[1743431630343,7.9003,126.6,126.57,92.64586777]
[1743431630848,7.9003,126.6,126.57,84.74406777]
[1743431631047,8.3444,126.64,126.57,92.64586777]
[1743431631048,7.9,126.61,126.57,92.64586777]
[1743431631247,0.05311042,126.6,126.57,84.79719187]
[1743431631444,0.05311042,126.6,126.57,92.69899187]
[1743431632351,0.05311042,126.6,126.57,62.0531241]
[1743431632750,0.05311042,126.6,126.57,0.0531241]
[1743431633745,7.9015,126.58,126.57,0.0531241]
[1743431634846,0.05311042,126.6,126.57,0.0531241]
[1743431635955,7.9015,126.58,126.57,0.0531241]
[1743431636753,0.05311042,126.6,126.57,0.0531241]
[1743431637750,7.9011,126.59,126.57,0.0531241]
[1743431638249,7.9009,126.59,126.57,0.0531241]
[1743431638550,0.05311042,126.6,126.57,0.0531241]
[1743431640148,7.95371042,126.6,126.57,0.0531241]
[1743431640346,0.05311042,126.6,126.58,34.5]
[1743431640652,0.05311042,126.6,126.58,42.4012]
[1743431641448,0.05311042,126.6,126.58,34.5]
[1743431642253,7.95371042,126.6,126.58,34.5]
[1743431642850,7.9009,126.59,126.58,34.5]
[1743431644055,0.05311042,126.6,126.58,34.5]
[1743431647154,7.95341042,126.6,126.58,34.5]
[1743431647557,0.05311042,126.6,126.58,34.5]
[1743431647857,7.9009,126.59,126.58,34.5]
[1743431648053,0.05311042,126.6,126.58,34.5]
[1743431648253,0.05311042,126.6,126.57,0.0531241]
[1743431648753,7.9015,126.58,126.57,0.0531241]
[1743431648952,8.1927,126.59,126.52,34.5]
[1743431649152,42.6927,126.59,126.52,34.5]
[1743431649354,3.9728,126.58,126.52,34.5]
[1743431650053,0.05055985,126.56,126.54,0.05103821]
[1743431650756,0.05055985,126.56,126.54,7.95503821]
[1743431650956,0.05055985,126.56,126.54,0.05103821]
[1743431651357,46.8979,126.64,126.54,0.05103821]
[1743431651554,46.8979,126.64,126.55,22.74406777]
[1743431651753,46.8979,126.64,126.56,96.5]
[1743431651956,7.8993,126.62,126.58,7.9012]
[1743431652452,0.05958196,126.61,126.59,7.95408326]
[1743431652660,0.05958196,126.61,126.59,0.05348326]
[1743431653056,0.05958196,126.61,126.59,7.95418326]
[1743431653258,0.05958196,126.61,126.59,0.05348326]
[1743431654356,8.3554,126.68,126.6,34.5]
[1743431654558,36.83638809,126.71,126.63,22.74406777]
[1743431654757,7.8958,126.68,126.65,7.8968]
[1743431655058,4.0803,126.71,126.64,34.48]
[1743431655258,4.0803,126.71,126.65,62.0]
[1743431655653,0.05255069,126.69,126.67,0.05079915]
[1743431656956,7.94745069,126.69,126.67,0.05079915]
[1743431657153,0.05255069,126.69,126.67,0.05079915]
[1743431657351,129.75309768,126.78,126.68,34.48]
[1743431657556,142.16319768,126.78,126.69,22.74406777]
[1743431657757,142.16319768,126.78,126.7,7.894]
[1743431658058,7.8912,126.75,126.7,7.894]
[1743431658254,129.75309768,126.78,126.71,7.8933]
[1743431658460,127.2849288,126.77,126.72,34.48]
[1743431658658,0.05027716,126.75,126.73,0.05401824]
[1743431659062,7.8903,126.76,126.72,34.48]
[1743431659261,0.05027716,126.75,126.73,0.05256324]
[1743431659656,0.05027716,126.75,126.74,62.0]
[1743431659960,36.87878809,126.82,126.74,62.0]
[1743431660359,36.87878809,126.82,126.74,65.9486]
[1743431660665,7.8902,126.77,126.74,62.0]
[1743431660864,36.87878809,126.82,126.74,62.0]
[1743431661061,22.74406777,126.81,126.74,62.05915748]
[1743431661263,22.74406777,126.81,126.74,62.0]
[1743431661463,36.87878809,126.82,126.76,0.05829063]
[1743431661666,7.8889,126.79,126.76,0.05829063]
[1743431661867,36.87878809,126.82,126.76,0.05829063]
[1743431662268,36.87878809,126.82,126.76,34.51829063]
[1743431663367,7.8896,126.78,126.76,34.51829063]
[1743431663569,36.87878809,126.82,126.76,34.51829063]
[1743431663973,4.1227,126.82,126.76,34.51829063]
[1743431664966,7.8895,126.78,126.76,34.51829063]
[1743431665170,26.86676777,126.82,126.76,34.51829063]
[1743431665565,7.8888,126.79,126.76,34.51829063]
[1743431665761,4.1227,126.82,126.76,34.51829063]
[1743431666671,22.74406777,126.96,126.76,34.51829063]
[1743431666870,35.20696777,126.87,126.76,34.46]
[1743431667474,35.20696777,126.87,126.8,0.05654527]
[1743431667668,7.8872,126.81,126.8,0.05654527]
[1743431668273,22.74406777,126.85,126.8,0.05654527]
[1743431668672,7.8872,126.81,126.8,0.05654527]
[1743431669470,7.8868,126.82,126.8,0.05654527]
[1743431669672,12.4629,126.87,126.8,42.58384527]
[1743431670266,12.4629,126.87,126.8,34.69654527]
[1743431670670,7.8861,126.83,126.8,34.69654527]
[1743431671381,384.74406777,126.92,126.81,22.74406777]
[1743431671674,12.6175,126.91,126.81,22.74406777]
[1743431671870,12.6175,126.91,126.85,0.06010206]
[1743431672070,12.6175,126.91,126.85,42.58440206]
[1743431672375,12.6175,126.91,126.85,34.70010206]
[1743431672980,7.8841,126.86,126.85,2.06e-06]
[1743431673269,7.8863,126.83,126.81,34.6]
[1743431673774,57.36406777,126.88,126.81,34.6]
[1743431674378,0.06010206,126.86,126.83,0.05426536]
[1743431674576,0.06010206,126.86,126.81,34.6]
[1743431674577,22.80416983,126.86,126.78,62.0]
[1743431674772,4.3007,126.85,126.78,62.0]
[1743431675175,4.3007,126.85,126.75,22.74406777]
[1743431675176,57.70406777,126.84,126.75,34.96]
[1743431675472,22.74406777,126.82,126.7,22.74406777]
[1743431675673,57.70406777,126.84,126.75,7.8908]
[1743431675875,0.05973393,126.81,126.78,0.05414693]
[1743431676178,7.8884,126.79,126.78,0.05414693]
[1743431676482,7.888,126.8,126.78,0.05414693]
[1743431677177,0.05973393,126.81,126.78,0.05414693]
[1743431678080,7.94723393,126.81,126.79,62.0]
[1743431678579,0.05973393,126.81,126.79,62.0]
[1743431678879,0.05973393,126.81,126.8,35.36]
[1743431679278,7.94693393,126.81,126.8,35.36]
[1743431679776,0.05973393,126.81,126.8,35.36]
[1743431680279,7.94693393,126.81,126.8,35.36]
[1743431680480,0.05973393,126.81,126.8,35.36]
[1743431681476,0.05973393,126.81,126.78,0.05414693]
[1743431681878,7.8882,126.8,126.78,0.05414693]
[1743431682278,0.05973393,126.81,126.78,0.05414693]
[1743431684077,7.8884,126.79,126.78,0.05414693]
[1743431684287,0.05973393,126.81,126.78,0.05414693]
[1743431684482,0.05973393,126.81,126.79,62.0]
[1743431686385,0.05973393,126.81,126.8,7.8878]